fUST/lending_fUST_20240813
["ID","MTS","AMOUNT","RATE_DAILY","PERIOD"]
[334708610,1723493445450,-538.048825,0.00014994,2]
[334708611,1723493445460,-538.048825,0.00014994,2]
[334708612,1723493445471,-817.03180288,0.00015,2]
[334708613,1723493445480,-347.89260852,0.00015,2]
[334708614,1723493445490,-39542.57026891,0.00015,2]
[334708615,1723493445500,-150.112233,0.00015,2]
[334708616,1723493445512,-163.944025,0.00015,2]
[334708617,1723493445523,-163.944025,0.00015,2]
[334708618,1723493445535,-151.0,0.00015,2]
[334708619,1723493445546,-180.569942,0.00015,2]
[334708620,1723493445556,-151.0,0.00015,2]
[334708621,1723493445565,-151.0,0.00015,2]
[334708622,1723493445575,-235.018642,0.00015,2]
[334708623,1723493445585,-235.018642,0.00015,2]
[334708624,1723493445594,-151.0,0.00015,2]
[334708625,1723493445603,-151.0,0.00015,2]
[334708626,1723493445614,-396.125028,0.00015,2]
[334708627,1723493445624,-396.125028,0.00015,2]
[334708628,1723493445633,-1333.66,0.00015032,2]
[334708629,1723493445644,-500.0,0.00015043,2]
[334708630,1723493445654,-2377.98,0.00015043,2]
[334708631,1723493445664,-8181.28,0.00015043,2]
[334708632,1723493445676,-892.34,0.00015043,2]
[334708633,1723493445687,-1446.3,0.00015043,2]
[334708634,1723493445698,-969.44,0.00015044,2]
[334708635,1723493445710,-500.0,0.00015044,2]
[334708636,1723493445720,-4918.39,0.00015044,2]
[334708637,1723493445731,-1537.59,0.00015044,2]
[334708638,1723493445742,-1065.07,0.00015044,2]
[334708639,1723493445753,-4804.94,0.00015044,2]
[334708640,1723493445763,-1748.84,0.00015044,2]
[334708641,1723493445773,-500.0,0.00015044,2]
[334708642,1723493445782,-545.71,0.00015044,2]
[334708643,1723493445792,-500.0,0.00015044,2]
[334708644,1723493445802,-1771.65,0.00015044,2]
[334708645,1723493445811,-1843.78,0.00015044,2]
[334708646,1723493445828,-1159.94,0.00015044,2]
[334708647,1723493445839,-500.0,0.00015044,2]
[334708648,1723493445851,-735.25,0.00015044,2]
[334708649,1723493445862,-809.95,0.00015139,2]
[334708650,1723493445872,-500.0,0.00015139,2]
[334708651,1723493445882,-500.0,0.00015139,2]
[334708652,1723493445891,-500.0,0.00015139,2]
[334708653,1723493445902,-500.0,0.00015139,2]
[334708654,1723493445913,-500.0,0.00015139,2]
[334708655,1723493445923,-500.0,0.00015139,2]
[334708656,1723493445933,-500.0,0.00015139,2]
[334708657,1723493445942,-778.41,0.00015139,2]
[334708658,1723493445952,-500.0,0.00015139,2]
[334708659,1723493445961,-500.0,0.00015139,2]
[334708660,1723493445971,-500.0,0.00015139,2]
[334708661,1723493445980,-500.0,0.00015139,2]
[334708662,1723493445990,-500.0,0.00015139,2]
[334708663,1723493446000,-500.0,0.00015139,2]
[334708664,1723493446010,-388.58388227,0.00015139,2]
[334708666,1723493446019,-692.2,0.00015139,2]
[334708667,1723493446029,-500.0,0.00015139,2]
[334708668,1723493446039,-674.19,0.00015139,2]
[334708669,1723493446049,-841.02,0.00015139,2]
[334708672,1723493446058,-500.0,0.00015139,2]
[334708674,1723493446068,-500.0,0.00015139,2]
[334708676,1723493446078,-500.0,0.00015139,2]
[334708678,1723493446088,-500.0,0.00015139,2]
[334708680,1723493446098,-500.0,0.00015139,2]
[334708682,1723493446109,-500.0,0.00015139,2]
[334708684,1723493446118,-500.0,0.00015139,2]
[334708686,1723493446128,-1002.34,0.00015139,2]
[334708687,1723493446138,-500.0,0.00015139,2]
[334708689,1723493446148,-500.0,0.00015139,2]
[334708691,1723493446158,-500.0,0.00015139,2]
[334708693,1723493446167,-500.0,0.00015139,2]
[334708695,1723493446178,-500.0,0.00015139,2]
[334708696,1723493446188,-500.0,0.00015139,2]
[334708697,1723493446197,-500.0,0.00015139,2]
[334708698,1723493446207,-500.0,0.00015139,2]
[334708699,1723493446216,-8974.27,0.00015139,2]
[334708700,1723493446225,-512.05556544,0.00015139,2]
[334708701,1723493446235,-500.0,0.00015139,2]
[334708702,1723493446245,-500.0,0.00015139,2]
[334708703,1723493446255,-2833.6,0.00015139,2]
[334708704,1723493446264,-207.41790081,0.00015139,2]
[334708705,1723493446274,-610.87,0.00015139,2]
[334708706,1723493446284,-500.0,0.00015139,2]
[334708707,1723493446294,-770.67,0.00015139,2]
[334708708,1723493446303,-1038.51,0.00015139,2]
[334708709,1723493446313,-1595.32,0.00015139,2]
[334708710,1723493446322,-500.0,0.00015139,2]
[334708711,1723493446332,-500.0,0.00015139,2]
[334708712,1723493446342,-500.0,0.00015139,2]
[334708713,1723493446351,-505.39917846,0.00015139,2]
[334708715,1723493446360,-500.0,0.00015139,2]
[334708716,1723493446370,-500.0,0.00015139,2]
[334708718,1723493446380,-512.53553775,0.00015139,2]
[334708719,1723493446390,-500.0,0.00015139,2]
[334708721,1723493446399,-934.47,0.00015139,2]
[334708723,1723493446409,-500.0,0.00015139,2]
[334708725,1723493446418,-1114.06,0.00015139,2]
[334708727,1723493446429,-500.0,0.00015139,2]
[334708729,1723493446439,-1341.07,0.00015139,2]
[334708731,1723493446449,-1704.47,0.00015139,2]
[334708733,1723493446458,-500.0,0.00015139,2]
[334708735,1723493446467,-985.04,0.00015139,2]
[334708737,1723493446477,-500.0,0.00015139,2]
[334708738,1723493446486,-500.0,0.00015139,2]
[334708740,1723493446495,-500.0,0.00015139,2]
[334708742,1723493446506,-500.0,0.00015139,2]
[334708744,1723493446515,-500.0,0.00015139,2]
[334708746,1723493446524,-509.26425576,0.00015139,2]
[334708748,1723493446534,-736.18,0.00015139,2]
[334708750,1723493446544,-514.72593159,0.00015139,2]
[334708751,1723493446553,-1015.83,0.00015139,2]
[334708752,1723493446562,-1319.39,0.00015139,2]
[334708754,1723493446572,-500.0,0.00015139,2]
[334708756,1723493446581,-500.0,0.00015139,2]
[334708757,1723493446590,-500.0,0.00015139,2]
[334708759,1723493446599,-500.0,0.00015139,2]
[334708760,1723493446609,-975.22,0.00015139,2]
[334708761,1723493446619,-4704.69,0.00015139,2]
[334708762,1723493446628,-500.0,0.00015139,2]
[334708763,1723493446637,-1757.25,0.00015139,2]
[334708764,1723493446646,-500.0,0.00015139,2]
[334708765,1723493446656,-597.27327732,0.00015139,2]
[334708766,1723493446665,-500.0,0.00015139,2]
[334708767,1723493446675,-489.698175,0.00015139,2]
[334708768,1723493446684,-489.698175,0.00015139,2]
[334708769,1723493446693,-500.0,0.00015139,2]
[334708770,1723493446702,-500.0,0.00015139,2]
[334708771,1723493446711,-151.0,0.00015139,2]
[334708772,1723493446721,-500.0,0.00015139,2]
[334708773,1723493446730,-743.1,0.00015139,2]
[334708774,1723493446739,-500.0,0.00015139,2]
[334708775,1723493446749,-500.0,0.00015139,2]
[334708776,1723493446758,-563.72385,0.00015139,2]
[334708777,1723493446767,-500.0,0.00015139,2]
[334708778,1723493446777,-819.93,0.00015139,2]
[334708779,1723493446787,-563.72385,0.00015139,2]
[334708780,1723493446796,-151.0,0.00015139,2]
[334708781,1723493446805,-151.0,0.00015139,2]
[334708782,1723493446813,-680.58,0.00015139,2]
[334708783,1723493446825,-500.0,0.00015139,2]
[334708784,1723493446835,-217.733989,0.00015139,2]
[334708785,1723493446845,-1640.83,0.00015139,2]
[334708786,1723493446854,-217.733989,0.00015139,2]
[334708787,1723493446863,-1033.78,0.00015139,2]
[334708788,1723493446873,-973.44,0.00015139,2]
[334708789,1723493446883,-833.02,0.00015139,2]
[334708790,1723493446891,-307.197218,0.00015139,2]
[334708791,1723493446903,-500.0,0.00015139,2]
[334708792,1723493446912,-307.197218,0.00015139,2]
[334708793,1723493446921,-500.0,0.00015139,2]
[334708794,1723493446931,-500.0,0.00015139,2]
[334708795,1723493446940,-500.0,0.00015139,2]
[334708796,1723493446950,-500.0,0.00015139,2]
[334708797,1723493446960,-566.29,0.00015139,2]
[334708798,1723493446970,-500.0,0.00015139,2]
[334708799,1723493446979,-500.0,0.00015139,2]
[334708800,1723493446988,-754.440334,0.00015139,2]
[334708801,1723493446997,-754.440334,0.00015139,2]
[334708802,1723493447006,-504.46139654,0.00015139,2]
[334708803,1723493447017,-2780.58,0.00015139,2]
[334708804,1723493447028,-500.0,0.00015139,2]
[334708805,1723493447039,-151.0,0.00015139,2]
[334708806,1723493447049,-506.99037355,0.00015139,2]
[334708807,1723493447060,-4030.51,0.00015139,2]
[334708808,1723493447069,-151.0,0.00015139,2]
[334708809,1723493447079,-151.0,0.00015139,2]
[334708810,1723493447089,-639.5,0.00015143,2]
[334708811,1723493447098,-1274.79,0.00015143,2]
[334708812,1723493447108,-500.0,0.00015143,2]
[334708813,1723493447118,-500.0,0.00015143,2]
[334708814,1723493447127,-500.0,0.00015143,2]
[334708815,1723493447137,-1229.37,0.00015143,2]
[334708816,1723493447146,-593.07,0.00015143,2]
[334708817,1723493447156,-548.59,0.00015143,2]
[334708818,1723493447166,-500.0,0.00015143,2]
[334708819,1723493447176,-6767.63,0.00015143,2]
[334708820,1723493447186,-500.0,0.00015143,2]
[334708821,1723493447196,-1091.47,0.00015143,2]
[334708822,1723493447206,-2080.65,0.00015143,2]
[334708823,1723493447215,-3407.53,0.00015143,2]
[334708824,1723493447225,-1336.77,0.00015143,2]
[334708825,1723493447234,-747.63,0.00015143,2]
[334708826,1723493447244,-1677.62,0.00015143,2]
[334708827,1723493447253,-515.31255409,0.00015143,2]
[334708828,1723493447263,-500.0,0.00015143,2]
[334708829,1723493447272,-1062.88,0.00015143,2]
[334708830,1723493447281,-863.16,0.00015143,2]
[334708831,1723493447291,-500.0,0.00015143,2]
[334708832,1723493447300,-500.0,0.00015144,2]
[334708833,1723493447312,-151.0,0.00015144,2]
[334708834,1723493447323,-884.53,0.00015144,2]
[334708835,1723493447333,-754.79,0.00015144,2]
[334708836,1723493447376,-500.0,0.00015144,2]
[334708837,1723493447386,-500.0,0.00015144,2]
[334708838,1723493447395,-500.0,0.00015144,2]
[334708839,1723493447404,-151.0,0.00015144,2]
[334708840,1723493447414,-500.0,0.00015144,2]
[334708841,1723493447424,-151.0,0.00015144,2]
[334708842,1723493447434,-500.0,0.00015144,2]
[334708843,1723493447445,-594.9,0.00015144,2]
[334708844,1723493447455,-666.22,0.00015144,2]
[334708845,1723493447464,-757.45,0.00015144,2]
[334708846,1723493447473,-500.0,0.00015144,2]
[334708847,1723493447482,-500.0,0.00015144,2]
[334708848,1723493447492,-500.0,0.00015144,2]
[334708849,1723493447501,-664.84,0.00015144,2]
[334708850,1723493447510,-500.0,0.00015144,2]
[334708851,1723493447519,-500.0,0.00015144,2]
[334708852,1723493447529,-500.0,0.00015144,2]
[334708853,1723493447538,-500.0,0.00015144,2]
[334708854,1723493447547,-526.27,0.00015144,2]
[334708855,1723493447557,-500.0,0.00015144,2]
[334708856,1723493447566,-500.0,0.00015144,2]
[334708857,1723493447575,-500.0,0.00015144,2]
[334708858,1723493447584,-500.0,0.00015144,2]
[334708859,1723493447593,-1143.79,0.00015144,2]
[334708860,1723493447602,-500.0,0.00015144,2]
[334708861,1723493447611,-500.0,0.00015144,2]
[334708862,1723493447620,-151.0,0.00015144,2]
[334708863,1723493447630,-500.0,0.00015144,2]
[334708864,1723493447638,-500.0,0.00015144,2]
[334708865,1723493447648,-538.048825,0.00015144,2]
[334708866,1723493447658,-586.95,0.00015144,2]
[334708867,1723493447668,-538.048825,0.00015144,2]
[334708868,1723493447678,-500.0,0.00015144,2]
[334708869,1723493447687,-576.31,0.00015144,2]
[334708870,1723493447696,-500.0,0.00015144,2]
[334708871,1723493447706,-500.0,0.00015144,2]
[334708872,1723493447716,-767.74,0.00015144,2]
[334708873,1723493447727,-500.0,0.00015144,2]
[334708874,1723493447738,-1492.04,0.00015144,2]
[334708875,1723493447752,-500.0,0.00015144,2]
[334708876,1723493447762,-1088.62,0.00015144,2]
[334708877,1723493447771,-500.0,0.00015144,2]
[334708878,1723493447780,-500.0,0.00015144,2]
[334708879,1723493447790,-612.61,0.00015144,2]
[334708880,1723493447799,-574.13,0.00015144,2]
[334708881,1723493447808,-1523.59,0.00015144,2]
[334708882,1723493447819,-500.0,0.00015144,2]
[334708883,1723493447831,-1364.03,0.00015144,2]
[334708884,1723493447840,-500.0,0.00015144,2]
[334708885,1723493447849,-500.0,0.00015144,2]
[334708886,1723493447858,-545.91,0.00015144,2]
[334708887,1723493447868,-2051.46,0.00015144,2]
[334708888,1723493447877,-500.0,0.00015144,2]
[334708889,1723493447886,-1197.08,0.00015144,2]
[334708890,1723493447895,-218.526785,0.00015154,2]
[334708891,1723493447905,-151.0,0.00015154,2]
[334708892,1723493447915,-396.125028,0.00015154,2]
[334708893,1723493447925,-396.125028,0.00015154,2]
[334708894,1723493447934,-500.0,0.00015155,2]
[334708895,1723493447943,-500.0,0.00015155,2]
[334708896,1723493447952,-500.0,0.00015155,2]
[334708897,1723493447961,-500.0,0.00015155,2]
[334708898,1723493447970,-500.0,0.00015155,2]
[334708899,1723493447979,-500.0,0.00015155,2]
[334708900,1723493447989,-817.28,0.00015155,2]
[334708901,1723493447998,-500.0,0.00015155,2]
[334708902,1723493448009,-507.03722635,0.00015155,2]
[334708903,1723493448018,-500.0,0.00015155,2]
[334708904,1723493448028,-500.0,0.00015155,2]
[334708905,1723493448039,-502.30415664,0.00015155,2]
[334708906,1723493448051,-500.0,0.00015155,2]
[334708907,1723493448060,-500.0,0.00015155,2]
[334708908,1723493448069,-500.0,0.00015155,2]
[334708909,1723493448078,-500.0,0.00015155,2]
[334708910,1723493448087,-503.60825939,0.00015155,2]
[334708911,1723493448097,-501.90565031,0.00015155,2]
[334708912,1723493448105,-500.0,0.00015155,2]
[334708913,1723493448115,-500.0,0.00015155,2]
[334708914,1723493448125,-500.0,0.00015155,2]
[334708915,1723493448134,-1081.43,0.00015155,2]
[334708916,1723493448143,-500.0,0.00015155,2]
[334708917,1723493448152,-500.0,0.00015155,2]
[334708918,1723493448161,-500.0,0.00015155,2]
[334708919,1723493448170,-500.0,0.00015155,2]
[334708920,1723493448180,-500.0,0.00015155,2]
[334708921,1723493448189,-500.0,0.00015155,2]
[334708922,1723493448199,-500.0,0.00015155,2]
[334708923,1723493448208,-500.0,0.00015155,2]
[334708924,1723493448217,-500.0,0.00015155,2]
[334708925,1723493448226,-500.0,0.00015155,2]
[334708926,1723493448236,-500.0,0.00015155,2]
[334708927,1723493448245,-890.51,0.00015155,2]
[334708928,1723493448256,-500.0,0.00015155,2]
[334708929,1723493448265,-500.0,0.00015155,2]
[334708930,1723493448276,-560.92,0.00015155,2]
[334708931,1723493448287,-500.0,0.00015155,2]
[334708932,1723493448296,-500.0,0.00015155,2]
[334708933,1723493448306,-500.0,0.00015155,2]
[334708934,1723493448316,-500.0,0.00015155,2]
[334708935,1723493448326,-500.0,0.00015155,2]
[334708936,1723493448336,-500.0,0.00015155,2]
[334708937,1723493448346,-500.0,0.00015155,2]
[334708938,1723493448356,-500.0,0.00015155,2]
[334708939,1723493448366,-500.0,0.00015155,2]
[334708940,1723493448376,-500.0,0.00015155,2]
[334708941,1723493448386,-500.0,0.00015155,2]
[334708942,1723493448395,-500.0,0.00015155,2]
[334708943,1723493448404,-379.90088652,0.00015155,2]
[334708944,1723493448414,-500.0,0.00015155,2]
[334708945,1723493448424,-338.95906,0.00015155,2]
[334708946,1723493448435,-500.0,0.00015155,2]
[334708947,1723493448446,-338.95906,0.00015155,2]
[334708948,1723493448456,-500.0,0.00015155,2]
[334708949,1723493448465,-500.0,0.00015155,2]
[334708950,1723493448475,-500.0,0.00015155,2]
[334708951,1723493448485,-545.7691022,0.00015155,2]
[334708952,1723493448495,-500.0,0.00015155,2]
[334708953,1723493448505,-522.5658529,0.00015155,2]
[334708954,1723493448515,-500.0,0.00015155,2]
[334708955,1723493448525,-500.0,0.00015155,2]
[334708956,1723493448535,-500.0,0.00015155,2]
[334708957,1723493448545,-500.0,0.00015155,2]
[334708958,1723493448556,-500.0,0.00015155,2]
[334708959,1723493448565,-500.0,0.00015155,2]
[334708960,1723493448575,-720.13,0.00015155,2]
[334708961,1723493448585,-500.0,0.00015155,2]
[334708962,1723493448595,-2521.05,0.00015155,2]
[334708963,1723493448605,-503.20593666,0.00015155,2]
[334708964,1723493448615,-556.84,0.00015155,2]
[334708965,1723493448625,-500.0,0.00015155,2]
[334708966,1723493448634,-530.83196321,0.00015155,2]
[334708967,1723493448644,-500.0,0.00015155,2]
[334708968,1723493448654,-500.0,0.00015155,2]
[334708969,1723493448664,-619.28,0.00015155,2]
[334708970,1723493448674,-163.944025,0.00015155,2]
[334708971,1723493448690,-163.944025,0.00015155,2]
[334708972,1723493448700,-151.0,0.00015155,2]
[334708973,1723493448709,-151.0,0.00015155,2]
[334708974,1723493448719,-239.842406,0.00015155,2]
[334708975,1723493448728,-500.0,0.00015155,2]
[334708976,1723493448738,-235.018642,0.00015155,2]
[334708977,1723493448748,-235.018642,0.00015155,2]
[334708978,1723493448757,-500.0,0.00015155,2]
[334708979,1723493448766,-500.0,0.00015155,2]
[334708980,1723493448776,-500.0,0.00015155,2]
[334708981,1723493448786,-500.0,0.00015155,2]
[334708982,1723493448796,-489.698175,0.00015155,2]
[334708983,1723493448805,-489.698175,0.00015155,2]
[334708984,1723493448816,-563.72385,0.00015155,2]
[334708985,1723493448829,-563.72385,0.00015155,2]
[334708986,1723493448839,-151.0,0.00015155,2]
[334708987,1723493448849,-151.0,0.00015155,2]
[334708988,1723493448860,-217.733989,0.00015155,2]
[334708989,1723493448871,-217.733989,0.00015155,2]
[334708990,1723493448881,-500.36549665,0.00015163,2]
[334708991,1723493448891,-503.9623298,0.00015163,2]
[334708992,1723493448902,-932.44,0.00015163,2]
[334708993,1723493448912,-500.0,0.00015163,2]
[334708994,1723493448922,-500.0,0.00015163,2]
[334708995,1723493448933,-500.0,0.00015163,2]
[334708996,1723493448943,-500.0,0.00015163,2]
[334708997,1723493448953,-608.49,0.00015163,2]
[334708998,1723493448964,-151.0,0.00015268,2]
[334708999,1723493448974,-151.0,0.00015268,2]
[334709000,1723493448983,-151.0,0.00015268,2]
[334709001,1723493448993,-1333.66,0.00015306,2]
[334709002,1723493449003,-500.0,0.00015317,2]
[334709003,1723493449013,-2377.98,0.00015317,2]
[334709004,1723493449023,-8181.28,0.00015317,2]
[334709005,1723493449034,-307.197218,0.00015317,2]
[334709006,1723493449045,-892.34,0.00015317,2]
[334709007,1723493449056,-307.197218,0.00015317,2]
[334709008,1723493449067,-754.440334,0.00015317,2]
[334709009,1723493449077,-754.440334,0.00015317,2]
[334709010,1723493449086,-1446.3,0.00015317,2]
[334709011,1723493449095,-151.0,0.00015317,2]
[334709012,1723493449105,-151.0,0.00015317,2]
[334709013,1723493449115,-969.44,0.00015318,2]
[334709014,1723493449125,-500.0,0.00015318,2]
[334709015,1723493449135,-4918.39,0.00015318,2]
[334709016,1723493449147,-1537.59,0.00015318,2]
[334709017,1723493449156,-1065.07,0.00015318,2]
[334709018,1723493449166,-4804.94,0.00015318,2]
[334709019,1723493449175,-1748.84,0.00015318,2]
[334709020,1723493449192,-500.0,0.00015318,2]
[334709021,1723493449202,-545.71,0.00015318,2]
[334709022,1723493449212,-1771.65,0.00015318,2]
[334709023,1723493449222,-1843.78,0.00015318,2]
[334709024,1723493449231,-1159.94,0.00015318,2]
[334709025,1723493449241,-735.25,0.00015318,2]
[334709026,1723493449252,-153.0,0.00015322,2]
[334709027,1723493449263,-229.6154198,0.00015322,2]
[334709028,1723493449273,-153.0,0.00015322,2]
[334709029,1723493449282,-153.0,0.00015322,2]
[334709030,1723493449292,-153.0,0.00015322,2]
[334709031,1723493449302,-153.0,0.00015322,2]
[334709032,1723493449312,-153.0,0.00015322,2]
[334709033,1723493449323,-179.9344274,0.00015322,2]
[334709034,1723493449333,-809.95,0.00015413,2]
[334709035,1723493449343,-500.0,0.00015413,2]
[334709036,1723493449355,-500.0,0.00015413,2]
[334709037,1723493449364,-500.0,0.00015413,2]
[334709038,1723493449374,-500.0,0.00015413,2]
[334709039,1723493449384,-778.41,0.00015413,2]
[334709040,1723493449395,-500.0,0.00015413,2]
[334709041,1723493449405,-500.0,0.00015413,2]
[334709042,1723493449415,-500.0,0.00015413,2]
[334709043,1723493449425,-500.0,0.00015413,2]
[334709044,1723493449438,-692.2,0.00015413,2]
[334709045,1723493449449,-500.0,0.00015413,2]
[334709046,1723493449459,-674.19,0.00015413,2]
[334709047,1723493449469,-841.02,0.00015413,2]
[334709048,1723493449478,-500.0,0.00015413,2]
[334709049,1723493449488,-500.0,0.00015413,2]
[334709050,1723493449497,-500.0,0.00015413,2]
[334709051,1723493449508,-500.0,0.00015413,2]
[334709052,1723493449517,-500.0,0.00015413,2]
[334709053,1723493449527,-500.0,0.00015413,2]
[334709054,1723493449537,-1002.34,0.00015413,2]
[334709055,1723493449547,-500.0,0.00015413,2]
[334709056,1723493449556,-500.0,0.00015413,2]
[334709057,1723493449566,-500.0,0.00015413,2]
[334709058,1723493449578,-500.0,0.00015413,2]
[334709059,1723493449587,-500.0,0.00015413,2]
[334709060,1723493449597,-500.0,0.00015413,2]
[334709061,1723493449607,-500.0,0.00015413,2]
[334709062,1723493449616,-7816.84607932,0.00015413,2]
[334709063,1723493450353,-151.0,0.00015317,2]
[334709064,1723493450364,-1157.42392068,0.00015413,2]
[334709065,1723493450373,-500.0,0.00015413,2]
[334709066,1723493450384,-500.0,0.00015413,2]
[334709067,1723493450393,-2833.6,0.00015413,2]
[334709068,1723493450402,-610.87,0.00015413,2]
[334709069,1723493450412,-770.67,0.00015413,2]
[334709070,1723493450421,-1038.51,0.00015413,2]
[334709071,1723493450431,-1595.32,0.00015413,2]
[334709072,1723493450441,-272.34864233,0.00015413,2]
[334709073,1723493450450,-500.0,0.00015413,2]
[334709074,1723493450460,-500.0,0.00015413,2]
[334709075,1723493450469,-500.0,0.00015413,2]
[334709076,1723493450478,-500.0,0.00015413,2]
[334709077,1723493450488,-500.0,0.00015413,2]
[334709078,1723493450497,-934.47,0.00015413,2]
[334709079,1723493450507,-500.0,0.00015413,2]
[334709080,1723493450516,-1114.06,0.00015413,2]
[334709081,1723493450525,-500.0,0.00015413,2]
[334709082,1723493450534,-1341.07,0.00015413,2]
[334709083,1723493450543,-1704.47,0.00015413,2]
[334709084,1723493450553,-500.0,0.00015413,2]
[334709085,1723493450562,-985.04,0.00015413,2]
[334709086,1723493450571,-500.0,0.00015413,2]
[334709087,1723493450580,-500.0,0.00015413,2]
[334709088,1723493450589,-500.0,0.00015413,2]
[334709089,1723493450598,-736.18,0.00015413,2]
[334709090,1723493450607,-1015.83,0.00015413,2]
[334709091,1723493450617,-1319.39,0.00015413,2]
[334709092,1723493450626,-500.0,0.00015413,2]
[334709093,1723493450635,-500.0,0.00015413,2]
[334709094,1723493450645,-500.0,0.00015413,2]
[334709095,1723493450654,-500.0,0.00015413,2]
[334709096,1723493450663,-975.22,0.00015413,2]
[334709097,1723493450672,-4704.69,0.00015413,2]
[334709098,1723493450683,-1757.25,0.00015413,2]
[334709099,1723493450692,-500.0,0.00015413,2]
[334709100,1723493450702,-500.0,0.00015413,2]
[334709101,1723493450711,-500.0,0.00015413,2]
[334709102,1723493450720,-500.0,0.00015413,2]
[334709103,1723493450730,-500.0,0.00015413,2]
[334709104,1723493450739,-743.1,0.00015413,2]
[334709105,1723493450749,-500.0,0.00015413,2]
[334709106,1723493450758,-500.0,0.00015413,2]
[334709107,1723493450767,-819.93,0.00015413,2]
[334709108,1723493450777,-680.58,0.00015413,2]
[334709109,1723493450786,-500.0,0.00015413,2]
[334709110,1723493450798,-1640.83,0.00015413,2]
[334709111,1723493450808,-1033.78,0.00015413,2]
[334709112,1723493450819,-973.44,0.00015413,2]
[334709113,1723493450832,-833.02,0.00015413,2]
[334709114,1723493450841,-500.0,0.00015413,2]
[334709115,1723493450850,-500.0,0.00015413,2]
[334709116,1723493450860,-500.0,0.00015413,2]
[334709117,1723493450870,-500.0,0.00015413,2]
[334709118,1723493450879,-500.0,0.00015413,2]
[334709119,1723493450888,-566.29,0.00015413,2]
[334709120,1723493450898,-500.0,0.00015413,2]
[334709121,1723493450909,-500.0,0.00015413,2]
[334709122,1723493450919,-2780.58,0.00015413,2]
[334709123,1723493450930,-500.0,0.00015413,2]
[334709124,1723493450939,-4030.51,0.00015413,2]
[334709125,1723493450948,-257.120067,0.00015417,2]
[334709126,1723493450957,-538.048825,0.00015417,2]
[334709127,1723493450966,-538.048825,0.00015417,2]
[334709128,1723493450976,-163.944025,0.00015417,2]
[334709129,1723493450985,-163.944025,0.00015417,2]
[334709130,1723493450996,-1274.79,0.00015417,2]
[334709131,1723493451006,-500.0,0.00015417,2]
[334709132,1723493451015,-151.0,0.00015417,2]
[334709133,1723493451024,-500.0,0.00015417,2]
[334709134,1723493451033,-500.0,0.00015417,2]
[334709135,1723493451043,-1229.37,0.00015417,2]
[334709136,1723493451052,-151.0,0.00015417,2]
[334709137,1723493451061,-593.07,0.00015417,2]
[334709138,1723493451070,-235.018642,0.00015417,2]
[334709139,1723493451079,-548.59,0.00015417,2]
[334709140,1723493451089,-235.018642,0.00015417,2]
[334709141,1723493451099,-532.3408573,0.00015417,2]
[334709142,1723493451109,-6767.63,0.00015417,2]
[334709143,1723493451119,-500.0,0.00015417,2]